fUSD/lending_fUSD_20240122
["ID","MTS","AMOUNT","RATE_DAILY","PERIOD"]
[312481066,1705918246543,-1402.61,0.0003726,2]
[312481067,1705918246552,-1368.89,0.0003726,2]
[312481068,1705918246561,-1312.98,0.0003726,2]
[312481069,1705918246570,-500.0,0.0003726,2]
[312481070,1705918246579,-500.0,0.0003726,2]
[312481071,1705918246587,-450.11951572,0.0003726,2]
[312481072,1705918246596,-500.0,0.0003726,2]
[312481073,1705918246605,-500.0,0.0003726,2]
[312481074,1705918246614,-500.0,0.0003726,2]
[312481075,1705918246623,-500.0,0.0003726,2]
[312481076,1705918246631,-500.0,0.0003726,2]
[312481077,1705918246640,-521.41900554,0.0003726,2]
[312481078,1705918246649,-1409.41,0.0003726,2]
[312481079,1705918246658,-607.02,0.0003726,2]
[312481080,1705918246666,-500.0,0.0003726,2]
[312481081,1705918246675,-1117.67,0.0003726,2]
[312481082,1705918246684,-500.0,0.0003726,2]
[312481083,1705918246693,-500.0,0.0003726,2]
[312481084,1705918246701,-500.0,0.0003726,2]
[312481085,1705918246710,-642.9,0.0003726,2]
[312481086,1705918246719,-500.0,0.0003726,2]
[312481087,1705918246727,-565.44214804,0.0003726,2]
[312481088,1705918246736,-550.82,0.0003726,2]
[312481089,1705918246745,-500.0,0.0003726,2]
[312481090,1705918246753,-500.0,0.0003726,2]
[312481091,1705918246762,-228.01450688,0.0003726,2]
[312481092,1705918246775,-500.0,0.0003726,2]
[312481093,1705918246784,-500.0,0.0003726,2]
[312481094,1705918246793,-500.0,0.0003726,2]
[312481095,1705918246801,-329.1116741,0.0003726,2]
[312481096,1705918246810,-1363.59,0.0003726,2]
[312481097,1705918246819,-712.1,0.0003726,2]
[312481098,1705918246828,-1057.85,0.0003726,2]
[312481099,1705918246837,-681.88,0.0003726,2]
[312481100,1705918246848,-500.0,0.0003726,2]
[312481101,1705918246857,-500.0,0.0003726,2]
[312481102,1705918246866,-931.04,0.0003726,2]
[312481103,1705918246875,-580.46,0.0003726,2]
[312481104,1705918246884,-500.0,0.0003726,2]
[312481105,1705918246892,-500.0,0.0003726,2]
[312481106,1705918246901,-500.0,0.0003726,2]
[312481107,1705918246909,-500.0,0.0003726,2]
[312481108,1705918246918,-500.0,0.0003726,2]
[312481109,1705918246927,-496.7,0.0003726,2]
[312481110,1705918246936,-720.79,0.0003726,2]
[312481111,1705918246945,-500.0,0.0003726,2]
[312481112,1705918246954,-788.65,0.0003726,2]
[312481113,1705918246963,-500.0,0.0003726,2]
[312481114,1705918246975,-204.95569,0.0003726,2]
[312481115,1705918246984,-523.77019439,0.0003726,2]
[312481116,1705918246993,-500.0,0.0003726,2]
[312481117,1705918247002,-1007.17,0.0003726,2]
[312481118,1705918247011,-500.0,0.0003726,2]
[312481119,1705918247021,-215.46430664,0.0003726,2]
[312481120,1705918247030,-500.0,0.0003726,2]
[312481121,1705918247039,-500.0,0.0003726,2]
[312481122,1705918247048,-500.0,0.0003726,2]
[312481123,1705918247057,-734.91,0.0003726,2]
[312481124,1705918247067,-500.0,0.0003726,2]
[312481125,1705918247076,-500.0,0.0003726,2]
[312481126,1705918247085,-779.93,0.0003726,2]
[312481127,1705918247095,-500.0,0.0003726,2]
[312481128,1705918247104,-500.0,0.0003726,2]
[312481129,1705918247113,-500.0,0.0003726,2]
[312481130,1705918247122,-191.69948298,0.0003726,2]
[312481131,1705918247131,-1114.12,0.0003726,2]
[312481132,1705918247141,-591.01,0.0003726,2]
[312481133,1705918247150,-663.06,0.0003726,2]
[312481134,1705918247159,-500.0,0.0003726,2]
[312481135,1705918247169,-1224.84,0.0003726,2]
[312481136,1705918247178,-663.29,0.0003726,2]
[312481137,1705918247188,-522.85,0.0003726,2]
[312481138,1705918247197,-500.0,0.0003726,2]
[312481139,1705918247206,-509.92873712,0.0003726,2]
[312481140,1705918247215,-2156.75,0.0003726,2]
[312481141,1705918247224,-500.0,0.0003726,2]
[312481142,1705918247234,-706.84,0.0003726,2]
[312481143,1705918247243,-731.87,0.0003726,2]
[312481144,1705918247253,-500.0,0.0003726,2]
[312481145,1705918247264,-500.0,0.0003726,2]
[312481146,1705918247282,-500.0,0.0003726,2]
[312481147,1705918247292,-505.3130686,0.0003726,2]
[312481148,1705918247301,-834.41,0.0003726,2]
[312481149,1705918247310,-1793.38,0.0003726,2]
[312481150,1705918247320,-500.0,0.0003726,2]
[312481151,1705918247329,-500.0,0.0003726,2]
[312481152,1705918247338,-736.96,0.0003726,2]
[312481153,1705918247348,-836.12,0.0003726,2]
[312481154,1705918247357,-500.0,0.0003726,2]
[312481155,1705918247366,-500.0,0.0003726,2]
[312481156,1705918247375,-1448.08,0.0003726,2]
[312481157,1705918247385,-500.0,0.0003726,2]
[312481158,1705918247394,-518.44206693,0.0003726,2]
[312481159,1705918247403,-504.17306386,0.0003726,2]
[312481160,1705918247413,-813.84,0.0003726,2]
[312481161,1705918247422,-500.0,0.0003726,2]
[312481162,1705918247431,-500.0,0.0003726,2]
[312481163,1705918247440,-500.0,0.0003726,2]
[312481164,1705918247449,-500.0,0.0003726,2]
[312481165,1705918247458,-500.0,0.0003726,2]
[312481166,1705918247467,-630.53,0.0003726,2]
[312481167,1705918247476,-500.0,0.0003726,2]
[312481168,1705918247486,-500.0,0.0003726,2]
[312481169,1705918247495,-766.16,0.0003726,2]
[312481170,1705918247504,-500.0,0.0003726,2]
[312481171,1705918247513,-505.23027259,0.0003726,2]
[312481172,1705918247522,-583.0,0.0003726,2]
[312481173,1705918247531,-1151.16,0.0003726,2]
[312481174,1705918247540,-692.15,0.0003726,2]
[312481175,1705918247550,-280.81018275,0.0003726,2]
[312481176,1705918247559,-1295.67,0.0003726,2]
[312481177,1705918247569,-500.0,0.0003726,2]
[312481178,1705918247579,-500.0,0.0003726,2]
[312481179,1705918247588,-500.0,0.0003726,2]
[312481180,1705918247598,-503.9946994,0.0003726,2]
[312481181,1705918247607,-7810.77,0.0003726,2]
[312481182,1705918247617,-500.0,0.0003726,2]
[312481183,1705918247626,-500.0,0.0003726,2]
[312481184,1705918247635,-824.96,0.0003726,2]
[312481185,1705918247645,-500.0,0.0003726,2]
[312481186,1705918247654,-500.0,0.0003726,2]
[312481187,1705918247663,-500.0,0.0003726,2]
[312481188,1705918247672,-500.0,0.0003726,2]
[312481189,1705918247681,-848.52,0.0003726,2]
[312481190,1705918247690,-500.0,0.0003726,2]
[312481191,1705918247699,-622.31,0.0003726,2]
[312481192,1705918247708,-1124.58,0.0003726,2]
[312481193,1705918247717,-2058.49,0.0003726,2]
[312481194,1705918247727,-500.0,0.0003726,2]
[312481195,1705918247736,-2736.33,0.0003726,2]
[312481196,1705918247745,-500.0,0.0003726,2]
[312481197,1705918247754,-903.83,0.0003726,2]
[312481198,1705918247764,-500.0,0.0003726,2]
[312481199,1705918247773,-500.0,0.0003726,2]
[312481200,1705918247783,-500.0,0.0003726,2]
[312481201,1705918247792,-500.0,0.0003726,2]
[312481202,1705918247802,-500.0,0.0003726,2]
[312481203,1705918247811,-500.0,0.0003726,2]
[312481204,1705918247822,-500.0,0.0003726,2]
[312481205,1705918247831,-500.0,0.0003726,2]
[312481206,1705918247841,-500.0,0.0003726,2]
[312481207,1705918247851,-1430.2,0.0003726,2]
[312481208,1705918247860,-2435.73,0.0003726,2]
[312481209,1705918247869,-500.0,0.0003726,2]
[312481210,1705918247878,-500.0,0.0003726,2]
[312481211,1705918247887,-500.0,0.0003726,2]
[312481212,1705918247897,-500.0,0.0003726,2]
[312481213,1705918247906,-500.0,0.0003726,2]
[312481214,1705918247915,-500.0,0.0003726,2]
[312481215,1705918247924,-500.0,0.0003726,2]
[312481216,1705918247933,-831.76,0.0003726,2]
[312481217,1705918247943,-6815.35,0.0003726,2]
[312481218,1705918247952,-500.0,0.0003726,2]
[312481219,1705918247961,-1929.39,0.0003726,2]
[312481220,1705918247970,-500.0,0.0003726,2]
[312481221,1705918247979,-506.68643464,0.0003726,2]
[312481222,1705918247988,-500.0,0.0003726,2]
[312481223,1705918247997,-787.58,0.0003726,2]
[312481224,1705918248006,-500.0,0.0003726,2]
[312481225,1705918248015,-4194.42,0.0003726,2]
[312481226,1705918248024,-394.92,0.0003726,2]
[312481227,1705918248034,-690.64,0.0003726,2]
[312481228,1705918248043,-914.75,0.0003726,2]
[312481229,1705918248052,-500.0,0.0003726,2]
[312481230,1705918248061,-2022.4,0.0003726,2]
[312481231,1705918248072,-500.0,0.0003726,2]
[312481232,1705918248081,-500.0,0.0003726,2]
[312481233,1705918248090,-500.0,0.0003726,2]
[312481234,1705918248099,-500.0,0.0003726,2]
[312481235,1705918248109,-1306.18,0.0003726,2]
[312481236,1705918248118,-10600.61,0.0003726,2]
[312481237,1705918248127,-500.0,0.0003726,2]
[312481238,1705918248136,-500.0,0.0003726,2]
[312481239,1705918248147,-2541.3,0.0003726,2]
[312481240,1705918248156,-504.70544774,0.0003726,2]
[312481241,1705918248168,-500.0,0.0003726,2]
[312481242,1705918248178,-500.0,0.0003726,2]
[312481243,1705918248187,-1257.08,0.0003726,2]
[312481244,1705918248196,-500.0,0.0003726,2]
[312481245,1705918248205,-8370.93,0.0003726,2]
[312481246,1705918248215,-951.67,0.0003726,2]
[312481247,1705918248224,-500.0,0.0003726,2]
[312481248,1705918248234,-500.0,0.0003726,2]
[312481249,1705918248244,-1520.58,0.0003726,2]
[312481250,1705918248253,-500.0,0.0003726,2]
[312481251,1705918248262,-500.0,0.0003726,2]
[312481252,1705918248271,-1113.93,0.0003726,2]
[312481253,1705918248280,-1255.54,0.0003726,2]
[312481254,1705918248289,-1161.25,0.0003726,2]
[312481255,1705918248298,-500.0,0.0003726,2]
[312481256,1705918248307,-537.65,0.0003726,2]
[312481257,1705918248317,-251.75567584,0.0003726,7]
[312481258,1705918248326,-8384.13,0.0003726,2]
[312481259,1705918248336,-500.0,0.0003726,2]
[312481260,1705918248345,-506.2,0.0003726,2]
[312481261,1705918248354,-500.0,0.0003726,2]
[312481262,1705918248363,-500.0,0.0003726,2]
[312481263,1705918248372,-500.0,0.0003726,2]
[312481264,1705918248381,-535.57,0.0003726,2]
[312481265,1705918248391,-500.0,0.0003726,2]
[312481266,1705918248400,-20203.98,0.0003726,2]
[312481267,1705918248409,-500.0,0.0003726,2]
[312481268,1705918248418,-500.0,0.0003726,2]
[312481269,1705918248427,-500.0,0.0003726,2]
[312481270,1705918248436,-500.0,0.0003726,2]
[312481271,1705918248445,-729.36,0.0003726,2]
[312481272,1705918248454,-500.0,0.0003726,2]
[312481273,1705918248463,-3068.96,0.0003726,2]
[312481274,1705918248472,-500.0,0.0003726,2]
[312481275,1705918248481,-500.0,0.0003726,2]
[312481276,1705918248490,-500.0,0.0003726,2]
[312481277,1705918248499,-1118.49,0.0003726,2]
[312481278,1705918248508,-668.18,0.0003726,2]
[312481279,1705918248517,-500.0,0.0003726,2]
[312481280,1705918248526,-1184.82,0.0003726,2]
[312481281,1705918248535,-500.0,0.0003726,2]
[312481282,1705918248544,-2081.28,0.0003726,2]
[312481283,1705918248553,-531.38698646,0.0003726,2]
[312481284,1705918248562,-841.62,0.0003726,2]
[312481285,1705918248573,-516.16988921,0.0003726,2]
[312481286,1705918248582,-1633.25,0.0003726,2]
[312481287,1705918248591,-572.8,0.0003726,2]
[312481288,1705918248600,-527.26,0.0003726,2]
[312481289,1705918248609,-500.0,0.0003726,2]
[312481290,1705918248618,-2335.47,0.0003726,2]
[312481291,1705918248627,-1367.16,0.0003726,2]
[312481292,1705918248636,-527.55319085,0.0003726,2]
[312481293,1705918248645,-2401.35,0.0003726,2]
[312481294,1705918248655,-1708.59,0.0003726,2]
[312481295,1705918248664,-1000.0,0.0003726,2]
[312481296,1705918248673,-2621.33,0.0003726,2]
[312481297,1705918248682,-500.0,0.0003726,2]
[312481298,1705918248691,-645.99,0.0003726,2]
[312481299,1705918248700,-506.34,0.0003726,2]
[312481300,1705918248709,-500.0,0.0003726,2]
[312481301,1705918248718,-500.0,0.0003726,2]
[312481302,1705918248727,-500.0,0.0003726,2]
[312481303,1705918248736,-1622.4,0.0003726,2]
[312481304,1705918248745,-718.21,0.0003726,2]
[312481305,1705918248754,-1676.4,0.0003726,2]
[312481306,1705918248763,-500.0,0.0003726,2]
[312481307,1705918248772,-946.96,0.0003726,2]
[312481308,1705918248782,-1319.04,0.0003726,2]
[312481309,1705918248791,-2075.59,0.0003726,2]
[312481310,1705918248800,-500.0,0.0003726,2]
[312481311,1705918248810,-500.0,0.0003726,2]
[312481312,1705918248820,-6977.55,0.0003726,2]
[312481313,1705918248829,-500.0,0.0003726,2]
[312481314,1705918248838,-1767.71,0.0003726,2]
[312481315,1705918248847,-500.0,0.0003726,2]
[312481316,1705918248856,-500.0,0.0003726,2]
[312481317,1705918248866,-500.0,0.0003726,2]
[312481318,1705918248875,-496.35829271,0.0003726,2]
[312481319,1705918248886,-609.87,0.0003726,2]
[312481320,1705918248897,-887.41,0.0003726,2]
[312481321,1705918248906,-721.14,0.0003726,2]
[312481322,1705918248915,-526.13,0.0003726,2]
[312481323,1705918248924,-1778.66,0.0003726,2]
[312481324,1705918248933,-500.0,0.0003726,2]
[312481325,1705918248942,-500.0,0.0003726,2]
[312481326,1705918248951,-500.0,0.0003726,2]
[312481327,1705918248961,-7096.97,0.0003726,2]
[312481328,1705918248970,-1707.86,0.0003726,2]
[312481329,1705918249168,-1162.19,0.0003726,2]
[312481330,1705918249177,-500.0,0.0003726,2]
[312481331,1705918249187,-500.0,0.0003726,2]
[312481332,1705918249195,-500.0,0.0003726,2]
[312481333,1705918249204,-978.39,0.0003726,2]
[312481334,1705918249213,-500.0,0.0003726,2]
[312481335,1705918249222,-1164.75,0.0003726,2]
[312481336,1705918249232,-500.0,0.0003726,2]
[312481337,1705918249241,-500.0,0.0003726,2]
[312481338,1705918249249,-396.35403231,0.0003726,2]
[312481339,1705918249258,-500.0,0.0003726,2]
[312481340,1705918249266,-500.0,0.0003726,2]
[312481341,1705918249275,-565.83,0.0003726,2]
[312481342,1705918249283,-500.0,0.0003726,2]
[312481343,1705918249292,-500.0,0.0003726,2]
[312481344,1705918249301,-500.0,0.0003726,2]
[312481345,1705918249310,-992.42,0.0003726,2]
[312481346,1705918249320,-500.0,0.0003726,2]
[312481347,1705918249329,-1769.17,0.0003726,2]
[312481348,1705918249338,-699.47,0.0003726,2]
[312481349,1705918249346,-2755.66,0.0003726,2]
[312481350,1705918249355,-500.0,0.0003726,2]
[312481351,1705918249364,-1168.63,0.0003726,2]
[312481352,1705918249373,-3171.51,0.0003726,2]
[312481353,1705918249382,-1327.59,0.0003726,2]
[312481354,1705918249391,-1134.96,0.0003726,2]
[312481355,1705918249400,-500.0,0.0003726,2]
[312481356,1705918249409,-500.0,0.0003726,2]
[312481357,1705918249417,-500.0,0.0003726,2]
[312481358,1705918249426,-318.6990999,0.0003726,2]
[312481359,1705918249435,-2444.19,0.0003726,2]
[312481360,1705918249444,-911.3,0.0003726,2]
[312481361,1705918249453,-1079.37,0.0003726,2]
[312481362,1705918249462,-500.0,0.0003726,2]
[312481363,1705918249470,-500.0,0.0003726,2]
[312481364,1705918249479,-500.0,0.0003726,2]
[312481365,1705918249489,-2214.39,0.0003726,2]
[312481366,1705918249497,-1996.58,0.0003726,2]
[312481367,1705918249506,-859.71,0.0003726,2]
[312481368,1705918249515,-662.77,0.0003726,2]
[312481369,1705918249524,-1440.77,0.0003726,2]
[312481370,1705918249533,-1513.41,0.0003726,2]
[312481371,1705918249542,-600.41,0.0003726,2]
[312481372,1705918249552,-2118.46,0.0003726,2]
[312481373,1705918249561,-500.0,0.0003726,2]
[312481374,1705918249571,-1100.28,0.0003726,2]
[312481375,1705918249579,-1230.31,0.0003726,2]
[312481376,1705918249589,-500.0,0.0003726,2]
[312481377,1705918249598,-500.0,0.0003726,2]
[312481378,1705918249607,-500.0,0.0003726,2]
[312481379,1705918249616,-500.0,0.0003726,2]
[312481380,1705918249624,-15057.83,0.0003726,2]
[312481381,1705918249633,-500.0,0.0003726,2]
[312481382,1705918249642,-1737.47,0.0003726,2]
[312481383,1705918249650,-500.0,0.0003726,2]
[312481384,1705918249660,-500.0,0.0003726,2]
[312481385,1705918249668,-570.83,0.0003726,2]
[312481386,1705918249677,-1863.73,0.0003726,2]
[312481387,1705918249686,-2386.89,0.0003726,2]
[312481388,1705918249695,-500.0,0.0003726,2]
[312481389,1705918249703,-830.67,0.0003726,2]
[312481390,1705918249712,-880.73,0.0003726,2]
[312481391,1705918249721,-2548.49,0.0003726,2]
[312481392,1705918249730,-1096.69,0.0003726,2]
[312481393,1705918249739,-831.31,0.0003726,2]
[312481394,1705918249748,-500.0,0.0003726,2]
[312481395,1705918249756,-2066.91,0.0003726,2]
[312481396,1705918249765,-500.0,0.0003726,2]
[312481397,1705918249774,-547.33,0.0003726,2]
[312481398,1705918249783,-617.1,0.0003726,2]
[312481399,1705918249792,-500.0,0.0003726,2]
[312481400,1705918249801,-500.0,0.0003726,2]
[312481401,1705918249809,-545.35,0.0003726,2]
[312481402,1705918249819,-1741.65,0.0003726,2]
[312481403,1705918249827,-500.0,0.0003726,2]
[312481404,1705918249836,-779.67,0.0003726,2]
[312481405,1705918249845,-3784.55,0.0003726,2]
[312481406,1705918249854,-1646.86,0.0003726,2]
[312481407,1705918249862,-527.33709504,0.0003726,2]
[312481408,1705918249871,-1026.8,0.0003726,2]
[312481409,1705918249880,-714.53,0.0003726,2]
[312481410,1705918249889,-500.0,0.0003726,2]
[312481411,1705918249897,-500.0,0.0003726,2]
[312481412,1705918249906,-500.0,0.0003726,2]
[312481413,1705918249915,-1447.96,0.0003726,2]
[312481414,1705918249924,-1138.41,0.0003726,2]
[312481415,1705918249933,-500.0,0.0003726,2]
[312481416,1705918249942,-549.91,0.0003726,2]
[312481417,1705918249951,-500.0,0.0003726,2]
[312481418,1705918249960,-2528.7,0.0003726,2]
[312481419,1705918249968,-4410.46,0.0003726,2]
[312481420,1705918249977,-500.0,0.0003726,2]
[312481421,1705918249986,-604.80605726,0.0003726,2]
[312481422,1705918249995,-500.0,0.0003726,2]
[312481423,1705918250004,-2452.49,0.0003726,2]
[312481424,1705918250013,-2037.5,0.0003726,2]
[312481425,1705918250023,-1002.73,0.0003726,2]
[312481426,1705918250032,-585.06,0.0003726,2]
[312481427,1705918250041,-778.35,0.0003726,2]
[312481428,1705918250050,-788.61,0.0003726,2]
[312481429,1705918250059,-776.39,0.0003726,2]
[312481430,1705918250068,-660.84,0.0003726,2]
[312481431,1705918250077,-1447.37,0.0003726,2]
[312481432,1705918250086,-580.45,0.0003726,2]
[312481433,1705918250095,-1749.4,0.0003726,2]
[312481434,1705918250104,-688.06,0.0003726,2]
[312481435,1705918250113,-500.0,0.0003726,2]
[312481436,1705918250122,-1835.97,0.0003726,2]
[312481437,1705918250130,-500.0,0.0003726,2]
[312481438,1705918250139,-1094.78,0.0003726,2]
[312481439,1705918250149,-500.0,0.0003726,2]
[312481440,1705918250159,-500.0,0.0003726,2]
[312481441,1705918250175,-5381.38,0.0003726,2]
[312481442,1705918250184,-2146.2,0.0003726,2]
[312481443,1705918250194,-500.0,0.0003726,2]
[312481444,1705918250203,-1173.04,0.0003726,5]
[312481445,1705918250215,-500.0,0.0003726,2]
[312481446,1705918250224,-1529.13,0.0003726,2]
[312481447,1705918250233,-2326.11,0.0003726,2]
[312481448,1705918250242,-1911.91,0.0003726,2]
[312481449,1705918250251,-500.0,0.0003726,2]
[312481450,1705918250260,-500.0,0.0003726,2]
[312481451,1705918250268,-500.0,0.0003726,2]
[312481452,1705918250277,-944.14,0.0003726,2]
[312481453,1705918250286,-536.73,0.0003726,2]
[312481454,1705918250295,-1767.16,0.0003726,2]
[312481455,1705918250304,-500.0,0.0003726,2]
[312481456,1705918250313,-17318.23,0.0003726,2]
[312481457,1705918250323,-510.49,0.0003726,2]
[312481458,1705918250331,-500.0,0.0003726,2]
[312481459,1705918250340,-500.0,0.0003726,2]
[312481460,1705918250349,-500.0,0.0003726,2]
[312481461,1705918250360,-1469.37,0.0003726,2]
[312481462,1705918250368,-2697.44,0.0003726,2]
[312481463,1705918250378,-500.0,0.0003726,2]
[312481464,1705918250386,-2455.11,0.0003726,2]
[312481465,1705918250395,-1400.19,0.0003726,2]
[312481466,1705918250404,-949.6,0.0003726,2]
[312481467,1705918250413,-1049.05,0.0003726,2]
[312481468,1705918250422,-970.12,0.0003726,2]
[312481469,1705918250431,-500.0,0.0003726,2]
[312481470,1705918250439,-500.0,0.0003726,2]
[312481471,1705918250448,-500.0,0.0003726,2]
[312481472,1705918250457,-500.0,0.0003726,2]
[312481473,1705918250466,-455.13407621,0.0003726,2]
[312481474,1705918250475,-500.0,0.0003726,2]
[312481475,1705918250484,-2250.0,0.00037298,30]
[312481476,1705918250494,-1849.461952,0.00037298,30]
[312481477,1705918250504,-150.0,0.00037298,30]
[312481478,1705918250513,-2916.0,0.000373,3]
[312481479,1705918250523,-166.52,0.00037323,2]
[312481480,1705918250532,-309.45195534,0.0003743,2]
[312481481,1705918250541,-9850.8357523,0.0003749,10]
[312481482,1705918250549,-281553.17355989,0.000375,5]
[312481483,1705918250558,-24792.37773389,0.000375,10]
[312481484,1705918250568,-3972.78,0.00037508,3]
[312481485,1705918250577,-500.0,0.00037534,14]
[312481486,1705918250586,-4925.41787615,0.0003758,10]
[312481487,1705918250595,-7945.52,0.000376,3]
[312481488,1705918250605,-9850.8357523,0.00037687,10]
[312481489,1705918250614,-4925.41787615,0.0003769,10]
[312481490,1705918250623,-2583.70126062,0.00037698,2]
[312481491,1705918250632,-212.395395,0.00037698,2]
[312481492,1705918250642,-1000.0,0.000377,13]
[312481493,1705918250652,-2940.41,0.00037707,2]
[312481494,1705918250661,-535.16997211,0.00037708,2]
[312481495,1705918250670,-4925.41787615,0.00037776,10]
[312481496,1705918250679,-44328.7608853,0.00037788,10]
[312481497,1705918250688,-49254.1787615,0.00037788,10]
[312481498,1705918250698,-527.0,0.0003779,3]
[312481499,1705918250707,-500.0,0.00037796,2]
[312481500,1705918250716,-9850.8357523,0.00037797,10]
[312481501,1705918250726,-78806.6860184,0.00037798,10]
[312481502,1705918250736,-151.0,0.00037798,7]
[312481503,1705918250745,-151.0,0.00037798,7]
[312481504,1705918250755,-151.0,0.00037798,7]
[312481505,1705918250764,-151.0,0.00037798,7]
[312481506,1705918250775,-151.0,0.00037798,7]
[312481507,1705918250784,-151.0,0.00037798,7]
[312481508,1705918250794,-1300.0,0.000378,13]
[312481509,1705918250803,-500.0,0.00037805,2]
[312481510,1705918250813,-500.0,0.00037806,2]
[312481511,1705918250824,-2940.41,0.00037806,2]
[312481512,1705918250833,-606.44713177,0.00037807,2]
[312481513,1705918250843,-500.0,0.00037807,2]
[312481514,1705918250852,-500.0,0.00037807,2]
[312481515,1705918250861,-500.0,0.00037807,2]
[312481516,1705918250869,-500.0,0.00037807,2]
[312481517,1705918250879,-500.0,0.00037807,2]
[312481518,1705918250888,-500.0,0.00037807,2]
[312481519,1705918250897,-500.0,0.00037807,2]
[312481520,1705918250906,-500.0,0.00037807,2]
[312481521,1705918250915,-2940.41,0.00037807,2]
[312481522,1705918250924,-2940.41,0.00037807,2]
[312481523,1705918250933,-2940.41,0.00037807,2]
[312481524,1705918250942,-2940.41,0.00037807,2]
[312481525,1705918250951,-300.0,0.00037807,2]
[312481526,1705918250960,-300.0,0.00037807,2]
[312481527,1705918250969,-300.0,0.00037807,2]
[312481528,1705918250978,-300.0,0.00037807,2]
[312481529,1705918250987,-300.0,0.00037807,2]
[312481530,1705918250996,-300.0,0.00037807,2]
[312481531,1705918251005,-300.0,0.00037807,2]
[312481532,1705918251015,-300.0,0.00037807,2]
[312481533,1705918251023,-300.0,0.00037807,2]
[312481534,1705918251032,-87232.94634446,0.00037808,7]
[312481535,1705918251802,-10196.6394674,0.00037808,7]
[312481536,1705918251827,-2448.0,0.00037808,7]
[312481537,1705918251837,-329.4448571,0.00037808,7]
[312481538,1705918251906,-1328.04865887,0.00037808,7]
[312481539,1705918251967,-1559.62469643,0.00037808,7]
[312481540,1705918251977,-4510.38258139,0.00037808,7]
[312481541,1705918252249,-991.29342353,0.00037667,2]
[312481542,1705918252258,-441.6527885,0.00037808,7]
[312481543,1705918252268,-2756.89495121,0.00037808,7]
[312481544,1705918252282,-1856.33199759,0.00037808,7]
[312481545,1705918252468,-2392.99999999,0.00037808,7]
[312481546,1705918252796,-12514.38534164,0.00037808,7]
[312481547,1705918252811,-288.58191196,0.00037808,7]
[312481548,1705918252827,-4452.00567061,0.00037808,7]
[312481549,1705918252849,-404.45609708,0.00037808,7]
[312481550,1705918253059,-2072.83652906,0.00037808,7]
[312481551,1705918253072,-468.95685218,0.00037808,7]
[312481552,1705918253087,-3254.02141228,0.00037808,7]
[312481553,1705918253098,-10215.94683224,0.00037808,7]
[312481554,1705918253117,-265.9835215,0.00037808,7]
[312481555,1705918253128,-268.0,0.00037808,7]
[312481556,1705918253139,-409.8170009,0.00037808,7]
[312481557,1705918253717,-297.43298472,0.000378,28]
[312481558,1705918253726,-9865.06701531,0.00037808,7]
[312481559,1705918253737,-2868.07055184,0.00037808,7]
[312481560,1705918253749,-1014.94089967,0.00037808,7]
[312481561,1705918253760,-699.99999959,0.00037808,7]
[312481562,1705918253771,-40704.92152448,0.00037808,7]
[312481563,1705918253780,-151.0,0.00037808,7]
[312481564,1705918253790,-151.0,0.00037808,7]
[312481565,1705918253799,-151.0,0.00037808,7]